[Event "Frauenbundesliga 2021-22"]
[Site "Germany"]
[Date "2022.05.27"]
[Round "4.16"]
[White "Naumann, Nadine"]
[Black "Theissl Pokorna, Regina"]
[Result "0-1"]
[ECO "C60"]
[WhiteElo "1951"]
[BlackElo "2302"]
[Annotator "TA"]
[PlyCount "128"]
[EventDate "2021.11.26"]
[EventType "team-tourn"]
[EventCountry "GER"]
[SourceTitle "playchess.com"]
[Source "ChessBase"]
[SourceQuality "1"]
[WhiteTeam "Loeberitz"]
[BlackTeam "Rodewisch"]
[TimeControl "40/5400+30:1800+30"]

{[%evp 9,128,17,18,-2,25,28,39,-7,-8,-37,-33,-34,-34,-53,-64,-64,-56,-70,-51,-90,-76,-100,-97,-92,-105,-107,-109,-122,-116,-116,-122,-129,-97,-102,-105,-131,-131,-198,-186,-182,-189,-164,-175,-178,-170,-167,-116,-125,-118,-169,-178,-200,-200,-200,-200,-226,-226,-214,-222,-262,-226,-279,-267,-249,-237,-721,-411,-399,-387,-480,-352,-329,-325,-677,-680,-631,-605,-539,-241,-237,-196,-196,-196,-196,-196,-237,-227,-249,-196,-196,-204,-608,-595,-754,-686,-2532,-2279,-29942,-12681,-6008,-9962,-4533,-3522,-29955,-1036,-29971,-29972,-29976,-29977,-29977,-29976,-29979,-29980,-29981,-29982,-29982,-29982,-29982,-29983,-29984,-29985]} 1. e4 {[%emt 0:00:06]} e5 {[%emt 0:00:05]} 2. Nf3 {[%emt 0:00:16]} Nc6 {[%emt 0:00:11]} 3. Bb5 {[%emt 0:00:33]} Nge7 {[%emt 0:00:32]} 4. O-O {[%emt 0:01:55]} g6 {[%emt 0:00:59]} 5. d4 {[%emt 0:02:12]} exd4 {[%emt 0:00:41]} 6. Bxc6 {[%emt 0:02:24] C60: Ruy Lopez: Unusual Black 3rd moves and 3...g6.} Nxc6 {[%emt 0:04:21]} 7. Nxd4 {[%emt 0:04:43]} Bg7 {[%emt 0:00:19]} 8. Nxc6 {[%emt 0:00:47]} (8. Be3 $14) 8... bxc6 {[%emt 0:00:16]} 9. c3 {[%emt 0:04:35]} O-O {[%emt 0:07:49]} 10. Re1 {[%emt 0:09:53]} d6 {[%emt 0:07:23] [#]} 11. Nd2 $146 {[%emt 0:02:14]} ({Predecessor:} 11. Be3 c5 12. Nd2 Bd7 13. Qc2 Re8 14. Rad1 Bc6 15. f3 a5 16. Nf1 Qb8 17. Bc1 {½-½ (42) Silva,P-Finlayson,M ICCF email 2013}) 11... c5 {[%emt 0:06:26]} 12. Qc2 {[%emt 0:02:28]} Re8 {[%emt 0:08:47]} 13. Nf3 {[%emt 0:09:40]} Bb7 {[%emt 0:07:34]} 14. Ng5 {[%emt 0:08:11]} (14. Qb3 $2 Bxe4 15. Qc4 Bxf3 16. Rxe8+ Qxe8 $19) 14... Qd7 {[%emt 0:03:15]} 15. Bd2 {[%emt 0:01:57]} Qc6 {[%emt 0:16:48]} 16. f3 {[%emt 0:03:19]} Bc8 {[%emt 0:00:03]} 17. Qb3 {[%emt 0:05:50]} c4 {[%emt 0:00:16]} 18. Qc2 {[%emt 0:01:33]} h6 {[%emt 0:00:43]} 19. Nh3 {[%emt 0:00:06]} Bxh3 {[%emt 0:00:12]} 20. gxh3 {[%emt 0:00:06]} Re5 {[%emt 0:11:35]} 21. Be3 {[%emt 0:10:31]} Rh5 {[%emt 0:00:37]} 22. Qf2 {[%emt 0:04:13]} Rxh3 {[%emt 0:03:55]} 23. Bxa7 {[%emt 0:02:15]} (23. Rad1 $17) 23... Be5 $19 {[%emt 0:03:28]} 24. f4 {[%emt 0:00:22] [#]} Bxf4 {[%emt 0:01:26][%mdl 512]} 25. Qxf4 {[%emt 0:00:32] Hoping for Bd4.} Rxa7 {[%emt 0:00:06]} 26. Rf1 {[%emt 0:05:42]} Qd7 {[%emt 0:00:04]} 27. Rf2 {[%emt 0:01:15]} Qe6 {[%emt 0:04:20]} (27... Rh5 $19 28. Raf1 c6) 28. Raf1 $17 {[%emt 0:02:34][%cal Rf4f7]} c6 {[%emt 0:00:19]} (28... Rxa2 $6 29. Qxf7+ Qxf7 30. Rxf7 $11) 29. a3 {[%emt 0:03:03]} (29. Qf6 $17) 29... Re7 $19 {[%emt 0:03:25]} 30. Rd2 {[%emt 0:02:27]} d5 {[%emt 0:01:03]} ({And not} 30... Qxe4 31. Qxe4 Rxe4 32. Rxd6 $11) 31. exd5 {[%emt 0:00:15]} cxd5 {[%emt 0:00:05]} 32. Rdf2 {[%emt 0:02:52]} Rh5 {[%emt 0:01:34][%cal Bh3h5,Bh5e5,Be5e3][%mdl 32] Active counter play!} 33. Rg2 {[%emt 0:02:42]} Kh7 {[%emt 0:02:39]} 34. Qd2 {[%emt 0:00:25]} Re5 {[%emt 0:01:04]} 35. Kh1 {[%emt 0:01:48]} Re3 {[%emt 0:03:22]} 36. Qf2 {[%emt 0:00:50]} Qe4 {[%emt 0:00:40]} 37. Qg1 $2 {[%emt 0:01:33]} (37. Kg1) 37... f5 {[%emt 0:01:33]} 38. Qf2 {[%emt 0:01:04]} Re5 {[%emt 0:00:51]} 39. Kg1 {[%emt 0:00:21]} d4 {[%emt 0:00:37]} 40. cxd4 {[%emt 0:00:30]} Qxd4 {[%emt 0:00:02]} 41. Rg3 $2 {[%emt 0:04:29]} (41. a4) 41... Rxg3+ {[%emt 0:08:48]} 42. hxg3 {[%emt 0:00:08][%mdl 4096] Endgame KQR-KQR} Re3 {[%emt 0:00:08] ( -> ...Rxg3+)} 43. Kh2 {[%emt 0:02:50]} Qe4 {[%emt 0:01:05]} (43... h5 $142 {[%cal Oh5h4] And now ...h4! would win.} 44. Rd1 Qe5) 44. Qg2 {[%emt 0:01:19]} Qxg2+ {[%emt 0:02:32]} ({Not} 44... Re2 45. Rf2 Re1 46. Qxe4 Rxe4 47. Kg2 $17) 45. Kxg2 {[%emt 0:00:07] KR-KR} Rb3 {[%emt 0:00:03]} 46. Rf2 {[%emt 0:01:59]} Kg7 {[%emt 0:01:19]} 47. Rd2 {[%emt 0:01:08]} Kf6 {[%emt 0:00:16]} 48. a4 {[%emt 0:01:34]} Rb4 {[%emt 0:01:11]} 49. a5 {[%emt 0:00:12]} Ra4 {[%emt 0:00:49]} 50. Rd6+ $2 {[%emt 0:02:13]} (50. Rc2) 50... Kg5 {[%emt 0:00:22]} 51. Rc6 {[%emt 0:03:50] [#]} Ra2 $1 {[%emt 0:00:23]} ({Stronger than} 51... Rxa5 52. Rxc4 Rd5 53. Rb4 $17) 52. Kh3 {[%emt 0:00:09]} Rxb2 {[%emt 0:00:25]} 53. Rxc4 {[%emt 0:00:10]} Ra2 {[%emt 0:00:27]} 54. Rc5 {[%emt 0:00:23]} h5 {[%emt 0:02:39]} 55. Rb5 {[%emt 0:00:50]} Ra3 {[%emt 0:02:01] Threatens to win with ...h4.} 56. Kg2 {[%emt 0:01:14]} h4 {[%emt 0:00:30]} 57. gxh4+ {[%emt 0:01:09]} Kxh4 {[%emt 0:00:06] Black mates.} 58. Rb6 {[%emt 0:01:08]} g5 {[%emt 0:00:05][%cal Bg6g5,Bg5g4,Bg4g3][%mdl 32]} 59. a6 {[%emt 0:02:36]} f4 {[%emt 0:00:22]} 60. Rf6 {[%emt 0:04:57]} Kg4 {[%emt 0:00:17]} 61. Kf2 {[%emt 0:01:01]} Ra2+ {[%emt 0:00:09]} 62. Kf1 {[%emt 0:00:59]} Kf3 {[%emt 0:01:03][%cal Ra2a1]} 63. Ke1 {[%emt 0:00:44]} g4 {[%emt 0:00:17]} 64. Kd1 {[%emt 0:00:45]} g3 {[%emt 0:00:09] Weighted Error Value: White=0.72/Black=0.15 (very precise)} 0-1

[Event "Frauenbundesliga 2021-22"]
[Site "Germany"]
[Date "2022.05.27"]
[Round "4.17"]
[White "Miturova, Magdalena"]
[Black "Giebel, Christine"]
[Result "1-0"]
[ECO "C11"]
[WhiteElo "2217"]
[BlackElo "1833"]
[Annotator "TA"]
[PlyCount "53"]
[EventDate "2021.11.26"]
[EventType "team-tourn"]
[EventCountry "GER"]
[SourceTitle "playchess.com"]
[Source "ChessBase"]
[SourceQuality "1"]
[WhiteTeam "Rodewisch"]
[BlackTeam "Loeberitz"]
[TimeControl "40/5400+30:1800+30"]

{[%evp 11,53,5,36,20,32,37,44,42,146,148,138,145,133,131,144,138,450,463,455,458,412,284,510,517,544,525,868,858,819,826,800,802,947,832,848,789,1619,1590,2075,1997,2003,1960,29984,29984]} 1. e4 {[%emt 0:00:05]} e6 {[%emt 0:00:09]} 2. d4 {[%emt 0:00:07]} d5 {[%emt 0:00:07]} 3. Nc3 {[%emt 0:00:16]} Nf6 {[%emt 0:00:12]} 4. e5 {[%emt 0:00:11]} Nfd7 {[%emt 0:00:10]} 5. f4 {[%emt 0:00:11]} c5 {[%emt 0:00:21]} 6. Nf3 {[%emt 0:00:07]} Qb6 {[%emt 0:00:33]} 7. Na4 {[%emt 0:04:53] C11: French: Classical System: 4 e5 and 4 Bg5 dxe4.} Qa5+ {[%emt 0:02:34] 7...Qa5+ is better than 7...Qc6.} 8. c3 {[%emt 0:00:57]} c4 {[%emt 0:02:39]} 9. b4 {[%emt 0:00:43] White is slightly better.} cxb3 {[%emt 0:03:10]} (9... Qc7 $14) 10. axb3 $16 {[%emt 0:10:39]} Nc6 {[%emt 0:06:53]} 11. Bd2 {[%emt 0:02:38] [#]} Qd8 $146 {[%emt 0:00:53]} ({Predecessor:} 11... Qc7 12. Bd3 a5 13. O-O Rb8 14. Qe2 g6 15. Rfc1 Nb6 16. Nb2 Qd8 17. Be3 Bd7 {1-0 (32) Kovar,V (2227)-Sedy,P (2214) Czech Republic 2007}) 12. Bd3 {[%emt 0:01:58]} Be7 {[%emt 0:05:56]} 13. O-O {[%emt 0:00:49] White is more active.} f6 $2 {[%emt 0:11:36][%mdl 8192] [#] Prevents Ng5.} (13... Nb6 14. Nc5 Nd7) (13... Nb6 $16 {is tougher.} 14. Nc5 Nd7) 14. Ng5 $1 $18 {[%emt 0:22:20][%mdl 512] White threatens Qh5+ and mate.} Nf8 {[%emt 0:15:47]} 15. exf6 {[%emt 0:03:22]} Bxf6 {[%emt 0:02:54]} 16. Ra2 {[%emt 0:03:13]} Qc7 $2 {[%emt 0:17:35]} (16... g6 {was called for.} 17. Qe2 a6) 17. f5 {[%emt 0:07:21] Strongly threatening Qh5+.} exf5 {[%emt 0:16:24]} 18. Bf4 {[%emt 0:00:29][%cal Bd2f4,Bf4g5,Bg5e7][%mdl 32]} Qa5 {[%emt 0:04:07]} 19. Re1+ {[%emt 0:03:33]} Ne7 {[%emt 0:00:37]} 20. b4 {[%emt 0:02:19]} Qd8 {[%emt 0:00:19]} 21. Nc5 {[%emt 0:00:52] [#] Bb5+ is the strong threat.} Bxg5 {[%emt 0:03:43]} 22. Bxg5 {[%emt 0:04:43]} Nfg6 {[%emt 0:00:36]} 23. Rae2 {[%emt 0:05:45]} Kf7 {[%emt 0:01:31]} 24. Rxe7+ {[%emt 0:05:02]} Nxe7 {[%emt 0:00:07]} 25. Qh5+ {[%emt 0:00:56]} g6 {[%emt 0:00:58]} 26. Qh4 {[%emt 0:01:07]} h6 {[%emt 0:00:00]} 27. Bxe7 {[%emt 0:00:00] White took control after the opening.  Weighted Error Value: White=0.14 (very precise) /Black=1.03} 1-0

[Event "Frauenbundesliga 2021-22"]
[Site "Germany"]
[Date "2022.05.27"]
[Round "4.18"]
[White "Schuster, Rebekka"]
[Black "Kubikova, Alena"]
[Result "0-1"]
[ECO "B08"]
[WhiteElo "1830"]
[BlackElo "2093"]
[Annotator "TA"]
[PlyCount "56"]
[EventDate "2021.11.26"]
[EventType "team-tourn"]
[EventCountry "GER"]
[SourceTitle "playchess.com"]
[Source "ChessBase"]
[SourceQuality "1"]
[WhiteTeam "Loeberitz"]
[BlackTeam "Rodewisch"]
[TimeControl "40/5400+30:1800+30"]

{[%evp 13,56,49,44,-27,-24,-27,-17,-18,20,-6,26,-22,-21,-20,-32,-16,-29,-185,-179,-172,-178,-158,-148,-190,-161,-238,-237,-300,-314,-299,-279,-295,-289,-294,-235,-261,-208,-365,-362,-433,-437,-1264,-1235,-1351,-1315]} 1. e4 {[%emt 0:00:02]} g6 {[%emt 0:00:17]} 2. d4 {[%emt 0:00:15]} Bg7 {[%emt 0:00:26]} 3. Nc3 {[%emt 0:00:12]} d6 {[%emt 0:00:22]} 4. Be3 {[%emt 0:00:20]} c6 {[%emt 0:00:26]} 5. a4 {[%emt 0:01:22]} Nf6 {[%emt 0:03:46]} 6. h3 {[%emt 0:00:32]} O-O {[%emt 0:10:36]} 7. Nf3 {[%emt 0:00:18]} b6 {[%emt 0:04:34] [#]} 8. b4 $146 {[%emt 0:31:31] B08: Pirc Defence: Classical System.} (8. Be2 $14) ({Predecessor:} 8. Be2 a6 9. O-O Bb7 10. Qd2 b5 11. axb5 cxb5 12. e5 dxe5 13. dxe5 Qxd2 14. Nxd2 Nfd7 15. f4 Nc6 {0-1 (56) Nestorovic,N (2477)-Jumabayev,R (2637) Chess.com INT 2021}) 8... Bb7 $11 {[%emt 0:06:47]} 9. Bd3 {[%emt 0:02:48]} c5 {[%emt 0:17:29]} 10. bxc5 {[%emt 0:08:56] The position is equal.} bxc5 {[%emt 0:09:37]} 11. Rb1 {[%emt 0:04:36]} Qc8 {[%emt 0:10:12] [#] And now ...cxd4 would win.} 12. dxc5 {[%emt 0:30:35]} (12. d5 $142) 12... Nfd7 {[%emt 0:07:56][%cal Bf6d7,Bd7c5,Bc5a4,Ba4c3][%mdl 32]} 13. Nd5 {[%emt 0:03:37]} Bxd5 {[%emt 0:00:29]} 14. exd5 {[%emt 0:00:07] c6 is the strong threat.} Nxc5 {[%emt 0:02:22]} 15. Bb5 {[%emt 0:07:15] [#] This move loses the game for White.} (15. Bxc5 $11 {and White is okay.} Qxc5 16. O-O) 15... a6 $19 {[%emt 0:01:51]} 16. Be2 {[%emt 0:02:03]} Nxa4 {[%emt 0:00:57] Strongly threatening ...Nc3.} 17. Qd3 {[%emt 0:01:11]} Nc3 {[%emt 0:03:39] Pair of Knights!} 18. Rb3 {[%emt 0:00:19]} Nd7 {[%emt 0:01:47][%cal Bb8d7,Bd7e5,Be5d3][%mdl 32]} 19. Bd4 {[%emt 0:01:40]} (19. O-O $142) 19... Bxd4 {[%emt 0:01:03]} 20. Qxd4 {[%emt 0:00:13]} Nxe2 {[%emt 0:00:20]} 21. Kxe2 {[%emt 0:00:11]} Qxc2+ {[%emt 0:00:42]} 22. Nd2 {[%emt 0:00:03]} Rfc8 {[%emt 0:04:31]} 23. Rhb1 {[%emt 0:00:23]} Ne5 {[%emt 0:03:03]} ({Avoid the trap} 23... Nc5 $2 24. Rc3 Qf5 25. Rf3 $19) 24. R1b2 {[%emt 0:01:34]} Qc5 {[%emt 0:00:55]} 25. Qe4 {[%emt 0:00:44]} (25. Qxc5 Rxc5 26. Rb8+ Rxb8 27. Rxb8+ Kg7 28. Re8) 25... f5 {[%emt 0:00:48]} 26. Qh4 {[%emt 0:00:36]} Qxd5 {[%emt 0:01:55] White must now prevent ...a5. Black is clearly winning.} 27. Qxe7 {[%emt 0:00:27]} (27. Nf3 $142) 27... Re8 {[%emt 0:00:45]} 28. Qb7 {[%emt 0:00:59]} Nd3+ {[%emt 0:00:40] Weighted Error Value: White=0.72/Black=0.11 (very precise)} 0-1

[Event "Frauenbundesliga 2021-22"]
[Site "Germany"]
[Date "2022.05.27"]
[Round "4.19"]
[White "Cosma, Elena-Luminita"]
[Black "Klek, Hanna Marie"]
[Result "1/2-1/2"]
[ECO "E06"]
[WhiteElo "2277"]
[BlackElo "2362"]
[Annotator "TA"]
[PlyCount "82"]
[EventDate "2021.11.26"]
[EventType "team-tourn"]
[EventCountry "GER"]
[SourceTitle "playchess.com"]
[Source "ChessBase"]
[SourceQuality "1"]
[WhiteTeam "Hemer"]
[BlackTeam "Deizisau"]
[TimeControl "40/5400+30:1800+30"]

{[%evp 13,82,15,25,0,0,-2,3,0,35,32,44,25,92,75,79,83,95,86,70,63,69,78,83,117,80,24,25,22,25,16,17,0,0,0,0,0,5,5,25,27,30,24,30,0,21,0,0,0,0,0,16,16,16,8,4,10,11,0,0,0,0,0,0,0,0,0,0,0,0,0,0]} 1. d4 {[%emt 0:00:03]} d5 {[%emt 0:00:05]} 2. Nf3 {[%emt 0:00:05]} Nf6 {[%emt 0:00:13]} 3. g3 {[%emt 0:00:04]} e6 {[%emt 0:00:05]} 4. Bg2 {[%emt 0:00:06]} Be7 {[%emt 0:00:07]} 5. O-O {[%emt 0:00:14]} O-O {[%emt 0:00:05]} 6. c4 {[%emt 0:00:02]} c6 {[%emt 0:00:05]} 7. Qc2 {[%emt 0:00:14]} b6 $1 {[%emt 0:00:06][%mdl 4] [#] now scores much better than the old 7...Nbd7.} 8. Nfd2 $146 {[%emt 0:01:14] E06: Closed Catalan: Early deviations.} ({Predecessor:} 8. b3 Bb7 9. Bb2 Nbd7 10. Rd1 Rc8 11. Nc3 c5 12. cxd5 exd5 13. Rac1 Re8 14. Qf5 c4 15. Ne5 g6 16. Qh3 cxb3 17. axb3 Nf8 18. e3 h5 19. f4 Rc7 20. Bf3 a6 21. Qg2 b5 {0-1 (35) Wojtaszek,R (2700)-Duda,J (2756) Bydgoszcz 2021}) 8... Ba6 {[%emt 0:06:37]} 9. Rd1 {[%emt 0:04:32]} Nbd7 {[%emt 0:09:05]} 10. e4 {[%emt 0:04:03]} dxc4 {[%emt 0:05:12]} 11. Nxc4 {[%emt 0:00:48]} Rc8 {[%emt 0:09:28]} 12. Bf4 {[%emt 0:01:07]} Bxc4 {[%emt 0:04:05]} (12... Nd5 $11 {keeps the balance.}) 13. Qxc4 $16 {[%emt 0:00:18]} b5 {[%emt 0:00:57]} 14. Qe2 {[%emt 0:01:50] White is more active.} Qb6 {[%emt 0:02:12]} 15. a4 {[%emt 0:05:24]} a6 {[%emt 0:04:33]} 16. Be3 {[%emt 0:07:09]} Qb8 {[%emt 0:04:40]} 17. axb5 {[%emt 0:03:12]} axb5 {[%emt 0:00:13]} 18. Nd2 {[%emt 0:05:06]} c5 {[%emt 0:06:55]} 19. dxc5 {[%emt 0:19:05]} (19. Ra5 $16) 19... Bxc5 $11 {[%emt 0:01:53]} 20. Bxc5 {[%emt 0:01:41]} Rxc5 {[%emt 0:04:19]} 21. Nb3 {[%emt 0:06:55]} Rc4 {[%emt 0:01:32]} 22. Na5 {[%emt 0:01:45]} Rcc8 {[%emt 0:02:45]} 23. Rd4 {[%emt 0:07:07]} Ne5 {[%emt 0:06:22]} 24. Rad1 {[%emt 0:03:14]} Qb6 {[%emt 0:10:28]} 25. b4 {[%emt 0:01:16]} Rc1 {[%emt 0:02:05]} 26. Qb2 {[%emt 0:10:03]} Rxd1+ {[%emt 0:01:21]} 27. Rxd1 {[%emt 0:00:05]} Qc7 {[%emt 0:03:58]} 28. h3 {[%emt 0:06:04]} h6 {[%emt 0:01:50] The position is equal.} 29. Qd4 {[%emt 0:05:20]} (29. Rc1 $5 {[%cal Rc1c7]} Qb8 30. Qc3 $11) 29... Rc8 {[%emt 0:01:27]} 30. Nb3 {[%emt 0:04:21]} Nc4 {[%emt 0:02:37]} 31. Nc5 {[%emt 0:01:13]} e5 {[%emt 0:01:44]} 32. Qa1 {[%emt 0:00:02]} Rd8 {[%emt 0:02:23]} 33. Bf1 {[%emt 0:00:40]} Rxd1 {[%emt 0:02:03]} 34. Qxd1 {[%emt 0:00:03]} Qa7 $1 {[%emt 0:02:58]} 35. Bxc4 {[%emt 0:02:36]} bxc4 {[%emt 0:00:05][%mdl 4096] Endgame KQN-KQN} 36. Qc1 {[%emt 0:00:24]} Qa2 {[%emt 0:00:59]} 37. b5 {[%emt 0:00:44]} c3 $1 {[%emt 0:00:44]} (37... Qe2 $2 38. Qf1 Qd2 39. Qxc4 Qd1+ 40. Kh2 $16) 38. Qxc3 {[%emt 0:00:07] [#] Hoping for Qb4.} Qb1+ {[%emt 0:00:11]} 39. Kg2 {[%emt 0:00:06] Strongly threatening Qa5.} Qxb5 {[%emt 0:00:37]} 40. Qxe5 {[%emt 0:01:25]} Nxe4 {[%emt 0:00:20]} 41. Qxe4 {[%emt 0:30:30]} Qxc5 {[%emt 0:30:05] Weighted Error Value: White=0.06 (flawless) /Black=0.08 (flawless)} 1/2-1/2

[Event "Frauenbundesliga 2021-22"]
[Site "Germany"]
[Date "2022.05.27"]
[Round "4.20"]
[White "Gaponenko, Inna"]
[Black "Voicu-Jagodzinsky, Carmen"]
[Result "1-0"]
[ECO "C11"]
[WhiteElo "2332"]
[BlackElo "2291"]
[Annotator "TA"]
[PlyCount "137"]
[EventDate "2021.11.26"]
[EventType "team-tourn"]
[EventCountry "GER"]
[SourceTitle "playchess.com"]
[Source "ChessBase"]
[SourceQuality "1"]
[WhiteTeam "Deizisau"]
[BlackTeam "Hemer"]
[TimeControl "40/5400+30:1800+30"]

{[%evp 16,137,12,0,0,0,0,0,6,0,24,20,29,12,28,24,55,41,49,48,43,25,20,12,27,3,81,81,90,-22,-40,-29,-13,0,49,53,156,156,183,182,234,15,22,0,0,0,0,0,0,0,0,0,8,8,8,8,8,8,8,8,8,11,16,16,28,28,28,28,27,17,17,17,17,14,17,17,406,406,406,406,406,406,406,406,406,0,406,406,406,406,406,406,406,406,406,406,406,406,406,0,406,406,406,406,406,406,406,406,29975,29976,29976,29977,29977,29978,29977,29976,29976,29976,29979,29980,29989,29990,29990,29991]} 1. e4 {[%emt 0:00:04]} e6 {[%emt 0:00:08]} 2. d4 {[%emt 0:00:08]} d5 {[%emt 0:00:04]} 3. Nc3 {[%emt 0:00:14]} Nf6 {[%emt 0:00:25]} 4. e5 {[%emt 0:00:21]} Nfd7 {[%emt 0:00:05]} 5. f4 {[%emt 0:00:13]} c5 {[%emt 0:00:17]} 6. Nf3 {[%emt 0:00:07]} Nc6 {[%emt 0:00:24]} 7. Be3 {[%emt 0:00:07]} a6 {[%emt 0:00:23]} 8. Qd2 {[%emt 0:00:12]} b5 {[%emt 0:00:21]} 9. Bd3 {[%emt 0:03:31]} b4 {[%emt 0:00:28] C11: French: Classical System: 4 e5 and 4 Bg5 dxe4.} 10. Na4 {[%emt 0:00:18][%cal Rd4c5]} c4 {[%emt 0:00:05]} 11. Be2 {[%emt 0:00:08]} c3 {[%emt 0:00:41] The position is equal.} 12. Qc1 {[%emt 0:00:18]} ({Of course not} 12. bxc3 Qa5 13. Nc5 Nxc5 14. dxc5 bxc3 $17) 12... cxb2 {[%emt 0:02:39]} 13. Qxb2 {[%emt 0:00:26]} Be7 {[%emt 0:03:44]} 14. O-O {[%emt 0:11:36]} O-O {[%emt 0:03:38] [#]} 15. c3 $146 {[%emt 0:35:09]} ({Predecessor:} 15. Bd3 a5 16. Qb3 Ba6 17. Rac1 Nb6 18. Bxa6 Rxa6 19. Nxb6 Rxb6 20. h3 g6 21. g4 {½-½ (21) Ter Sahakyan,S (2617)-Sumets,A (2566) Montebelluna 2020}) 15... a5 {[%emt 0:09:42]} 16. c4 {[%emt 0:01:17]} (16. f5 $5) 16... Nb6 {[%emt 0:11:28]} 17. Nxb6 {[%emt 0:15:37]} Qxb6 {[%emt 0:00:06]} 18. f5 {[%emt 0:00:04]} f6 {[%emt 0:06:49]} 19. Bf2 {[%emt 0:14:19]} a4 {[%emt 0:06:12]} 20. Rab1 {[%emt 0:08:16]} Kh8 {[%emt 0:09:34]} (20... b3 $11 {remains equal.}) 21. exf6 $16 {[%emt 0:02:34]} Bxf6 {[%emt 0:02:32]} 22. cxd5 {[%emt 0:00:07]} (22. Ne5 $16) 22... exd5 $11 {[%emt 0:00:14]} 23. g4 {[%emt 0:00:02]} b3 {[%emt 0:02:09]} (23... Ba6 $5 {[%cal Ra6e2]}) 24. Ne5 {[%emt 0:03:22]} Na5 {[%emt 0:08:16]} (24... Bb7 $11 {should be considered.}) 25. Qa3 $14 {[%emt 0:02:28][%cal Ra3f8]} Qd8 {[%emt 0:03:17]} ({Black should try} 25... Ba6 $1 $14 26. Bxa6 Qxa6) 26. Qxa4 $16 {[%emt 0:01:21] White is more active.} Bb7 {[%emt 0:01:24]} 27. axb3 {[%emt 0:00:52]} Qd6 {[%emt 0:09:54]} (27... Nc6 {keeps fighting.} 28. Nxc6 Qe8) 28. b4 $2 {[%emt 0:00:42]} ({Better is} 28. Qb5 $18) 28... Nc6 $11 {[%emt 0:07:50]} 29. Qb5 {[%emt 0:00:05]} Nxd4 $1 {[%emt 0:00:59][%mdl 64] [#] Remove Defender} 30. Bxd4 {[%emt 0:00:21]} Bxe5 {[%emt 0:02:16]} 31. Bxe5 {[%emt 0:00:59]} ({Don't blunder} 31. Qxb7 $2 Bxd4+ 32. Kh1 Ra2 $19) 31... Qxe5 {[%emt 0:00:02]} 32. Qd3 {[%emt 0:00:32]} Ra2 {[%emt 0:01:22] Prevents Qd2.} 33. Rf2 {[%emt 0:00:23][%cal Bf1f2,Bf2a2,Ba2a7][%mdl 32]} Re8 {[%emt 0:01:12][%cal Ra2e2]} 34. Re1 {[%emt 0:00:06]} d4 {[%emt 0:00:24] [#] aiming for ...Qd5.} 35. Bf1 $1 {[%emt 0:00:52][%csl LRa2,LRe5]} Qxe1 {[%emt 0:01:27][%csl Ga2][%cal Re1f2]} 36. Rxa2 {[%emt 0:00:01]} Qxb4 {[%emt 0:04:42]} 37. Qb5 {[%emt 0:00:09]} Qxb5 {[%emt 0:01:13]} (37... Qe7 38. Re2 Be4 39. Bg2) (37... Qe7 {feels hotter.} 38. Re2 Be4 39. Bg2 Bc6) 38. Bxb5 {[%emt 0:00:01][%mdl 4096] Endgame KRB-KRB} Re4 {[%emt 0:01:55]} 39. h3 {[%emt 0:00:13]} h5 {[%emt 0:00:27]} 40. Ra7 {[%emt 0:02:01]} Bd5 {[%emt 0:00:50]} 41. Rd7 {[%emt 0:30:24]} Re5 {[%emt 0:06:38]} 42. Kf2 {[%emt 0:00:00]} hxg4 {[%emt 0:10:22]} 43. hxg4 {[%emt 0:00:00]} g6 $1 {[%emt 0:03:03]} 44. f6 {[%emt 0:00:00] Strongly threatening Bd3.} Be6 $1 {[%emt 0:04:22][%csl LRb5,LRd7,LRg4]} 45. Rb7 {[%emt 0:00:00] Hoping for Bd3.} Rc5 $2 {[%emt 0:04:26][%mdl 8192] White leaves nothing to chance now.} (45... Bxg4 $11 {and Black is okay.} 46. Rb8+ Kh7) 46. Bd3 $18 {[%emt 0:00:00]} Bxg4 {[%emt 0:00:34]} 47. Bxg6 {[%emt 0:00:00]} Kg8 {[%emt 0:01:29]} 48. Rg7+ {[%emt 0:03:54]} Kf8 {[%emt 0:00:48]} 49. Rf7+ {[%emt 0:00:22]} Kg8 {[%emt 0:00:11]} 50. Rg7+ {[%emt 0:00:32]} Kf8 {[%emt 0:00:01]} 51. Rh7 {[%emt 0:00:05][%cal Rh7h8]} Rf5+ {[%emt 0:02:34]} 52. Bxf5 {[%emt 0:00:04]} Bxf5 {[%emt 0:00:00] KR-KB} 53. Ra7 {[%emt 0:00:19]} d3 {[%emt 0:00:17]} 54. Ke3 {[%emt 0:00:04]} Bg6 {[%emt 0:00:43]} 55. Rg7 {[%emt 0:00:35]} Bf5 {[%emt 0:00:08]} 56. Rg5 {[%emt 0:01:19]} Be6 {[%emt 0:00:34]} 57. Rg7 {[%emt 0:00:47]} Bf5 $1 {[%emt 0:00:01]} 58. Re7 {[%emt 0:00:09]} Bg6 {[%emt 0:00:08]} 59. Ra7 {[%emt 0:00:04]} Bf5 {[%emt 0:00:53]} 60. Rb7 {[%emt 0:01:40]} Bg6 {[%emt 0:00:18]} 61. Kf4 {[%emt 0:00:25] Threatening mate with Rd7.} Ke8 {[%emt 0:00:27] Prevents Rd7.} (61... d2 $18 62. Rd7 Bc2 63. Rxd2 Bb3) 62. Re7+ {[%emt 0:00:20] White mates.} Kf8 {[%emt 0:00:17]} 63. Rd7 {[%emt 0:00:40]} Ke8 {[%emt 0:00:16]} 64. Rd4 {[%emt 0:00:29]} Kf7 {[%emt 0:00:39]} 65. Kg5 {[%emt 0:00:09]} d2 {[%emt 0:02:20]} 66. Rd7+ {[%emt 0:00:28]} Ke6 {[%emt 0:00:20]} 67. Rxd2 {[%emt 0:00:05]} Bb1 {[%emt 0:00:39]} 68. Rb2 {[%emt 0:00:20]} Bd3 {[%emt 0:00:11]} 69. Rb7 {[%emt 0:00:09] Weighted Error Value: White=0.34/Black=0.21 (precise)} 1-0